bitfinex-derivatives/quotes_ETHF0:USTF0_20260112
["timestamp","ask_amount","ask_price","bid_price","bid_amount"]
[1768225129577,0.91581915,3116.5,3115.4,1.40108752]
[1768225129876,2.30204406,3116.6,3115.4,1.40108752]
[1768225130074,0.91581921,3116.5,3115.4,1.40108752]
[1768225130273,2.30204406,3116.6,3115.4,1.40108752]
[1768225130487,2.30550668,3116.6,3115.4,1.40108752]
[1768225130988,0.91587615,3116.5,3115.4,1.40108752]
[1768225131186,2.30550668,3116.6,3115.4,1.40108752]
[1768225131390,0.91599097,3116.5,3115.4,1.40108752]
[1768225131685,2.30550668,3116.6,3115.4,1.40108752]
[1768225131887,0.91599185,3116.5,3115.4,1.40108752]
[1768225132082,2.30550668,3116.6,3115.4,1.40108752]
[1768225132281,0.9155534,3116.5,3115.4,0.16305058]
[1768225132480,2.30550668,3116.6,3115.4,0.16305058]
[1768225132782,0.91555154,3116.5,3115.4,0.16305058]
[1768225132984,2.30550668,3116.6,3115.4,0.16305058]
[1768225133188,0.91554999,3116.5,3115.4,0.16305058]
[1768225133382,2.30550668,3116.6,3115.4,0.16305058]
[1768225133783,0.00346262,3116.6,3115.4,0.16305058]
[1768225142396,0.00346262,3116.6,3115.5,0.16069]
[1768225143092,0.00346262,3116.6,3115.6,0.16069]
[1768225150098,0.00346262,3116.6,3115.7,1.23803694]
[1768225151199,0.00346262,3116.6,3115.6,1.23803694]
[1768225151499,0.00346262,3116.6,3115.8,0.16067]
[1768225151692,2.32252706,3117.4,3116.0,1.23803694]
[1768225151893,0.16057,3117.8,3116.0,1.23803694]
[1768225151894,3.23796674,3117.3,3116.0,1.23803694]
[1768225152091,0.91543968,3117.2,3116.0,1.23803694]
[1768225152590,3.23796674,3117.2,3115.9,0.16067]
[1768225152898,2.32252706,3117.0,3115.9,0.16067]
[1768225156300,2.32252706,3117.0,3116.0,1.615]
[1768225156800,2.32252706,3116.8,3115.7,1.615]
[1768225157103,2.32252706,3116.6,3115.7,1.615]
[1768225158595,2.32252706,3116.6,3115.4,0.00235058]
[1768225158803,2.32252706,3116.4,3115.4,0.00235058]
[1768225160601,1.23803694,3116.7,3115.4,0.00235058]
[1768225160602,2.32252706,3116.2,3115.4,0.00235058]
[1768225160799,2.32252706,3116.2,3114.9,0.16072]
[1768225160998,1.23803694,3116.7,3114.5,1.615]
[1768225160999,2.32252706,3116.0,3114.5,1.615]
[1768225161301,1.23803694,3116.3,3114.5,1.615]
[1768225161302,2.32252706,3115.8,3114.5,1.615]
[1768225161892,2.32252706,3115.8,3114.5,1.61898201]
[1768225162908,2.32252706,3115.8,3114.5,1.77972201]
[1768225163105,2.32252706,3115.8,3114.6,1.23803694]
[1768225165305,2.32252706,3115.8,3114.6,1.39877694]
[1768225166401,2.32252706,3116.2,3114.8,0.16073]
[1768225168907,2.32252706,3116.2,3114.9,0.16072]
[1768225173398,2.32252706,3116.1,3114.9,1.39910685]
[1768225177015,2.32252706,3116.1,3115.1,1.23838685]
[1768225178808,2.32252706,3116.1,3114.9,1.39910685]
[1768225184810,2.32252706,3116.1,3115.1,1.23838685]
[1768225195425,0.91694037,3116.0,3115.1,1.23838685]
[1768225195722,2.32252706,3116.1,3115.1,1.23838685]
[1768225198026,2.32252706,3116.1,3115.3,1.23838685]
[1768225198325,2.28018052,3116.5,3115.3,1.23838685]
[1768225198524,3.19735607,3116.4,3115.3,1.23838685]
[1768225198724,0.91717555,3116.3,3115.3,1.23838685]
[1768225201532,3.19735607,3116.3,3115.3,1.23838685]
[1768225201732,0.91717555,3116.2,3115.3,1.23838685]
[1768225201924,0.91717555,3116.1,3115.3,1.23838685]
[1768225202123,2.28018052,3116.3,3115.3,1.23838685]
[1768225202421,0.91653041,3116.2,3115.3,1.23838685]
[1768225202621,0.91653041,3116.1,3115.3,1.23838685]
[1768225202822,2.28018052,3116.3,3115.3,1.23838685]
[1768225203022,0.91650707,3116.2,3115.2,0.16071]
[1768225203226,3.19668759,3116.1,3115.2,0.16071]
[1768225203423,2.28018052,3116.0,3115.2,0.16071]
[1768225207640,2.28018052,3116.0,3115.2,1.76871]
[1768225226355,2.28018052,3116.0,3114.7,0.16073]
[1768225226549,2.43663235,3115.8,3114.8,2.84638685]
[1768225227659,2.43663235,3115.8,3114.8,1.23838685]
[1768225227958,2.43663235,3115.8,3114.9,1.611]
[1768225233064,2.43663235,3115.8,3115.0,1.23838685]
[1768225233254,2.43663235,3116.4,3115.0,1.23838685]
[1768225233454,2.43663235,3116.2,3115.0,1.23838685]
[1768225233656,0.91644949,3116.1,3115.0,1.23838685]
[1768225234363,0.91644949,3116.1,3115.2,1.23838685]
[1768225235259,0.91644949,3116.1,3114.9,1.77172]
[1768225236256,0.91644949,3116.1,3115.1,1.2381663]
[1768225237563,0.91644949,3116.1,3115.1,1.3988763]
[1768225244176,0.91644949,3116.1,3115.1,0.16071]
[1768225244472,3.40222093,3116.1,3115.1,0.16071]
[1768225244663,0.91644949,3116.0,3115.1,0.16071]
[1768225245377,2.48577144,3115.9,3115.1,0.16071]
[1768225245970,2.48577144,3115.9,3115.2,1.619]
[1768225250176,2.48577144,3116.3,3115.2,1.619]
[1768225250383,0.91656367,3116.2,3115.2,1.7797]
[1768225250588,0.91656367,3116.1,3115.2,1.7797]
[1768225250778,0.91656367,3116.0,3115.2,1.7797]
[1768225250978,2.48577144,3116.3,3115.2,1.7797]
[1768225251181,0.91655722,3116.2,3115.2,1.7797]
[1768225251376,0.91655722,3116.1,3115.2,1.7797]
[1768225251576,0.91655722,3116.0,3115.2,1.7797]
[1768225251778,2.48577144,3116.3,3115.2,1.7797]
[1768225251980,0.91657763,3116.2,3115.2,1.7797]
[1768225252179,0.91657763,3116.1,3115.2,1.7797]
[1768225252385,0.91657763,3116.0,3115.2,1.7797]
[1768225252587,2.48577144,3116.3,3115.2,1.7797]
[1768225252787,0.91777898,3116.2,3115.2,1.7797]
[1768225252988,0.91777898,3116.1,3115.2,1.7797]
[1768225253183,0.91777898,3116.0,3115.2,1.7797]
[1768225253390,2.48577144,3116.3,3115.2,1.7797]
[1768225253688,3.40357754,3116.2,3115.2,1.7797]
[1768225253880,0.9178061,3116.1,3115.2,1.7797]
[1768225254080,0.9178061,3116.0,3115.2,1.7797]
[1768225254281,2.48577144,3116.2,3115.2,1.7797]
[1768225254482,0.91781542,3116.1,3115.2,1.7797]
[1768225254681,0.91781542,3116.0,3115.2,1.7797]
[1768225254883,2.48577144,3116.2,3115.2,1.7797]
[1768225255082,0.91764022,3116.1,3115.2,1.7797]
[1768225255382,0.91764022,3116.0,3115.2,1.7797]
[1768225255583,2.48577144,3116.2,3115.2,1.7797]
[1768225255883,0.91766491,3116.1,3115.2,1.7797]
[1768225256084,0.91766491,3116.0,3115.2,1.7797]
[1768225256283,2.48577144,3116.2,3115.2,1.7797]
[1768225256480,2.48577144,3116.0,3114.7,1.2381663]
[1768225256784,2.48577144,3116.0,3115.2,1.617]
[1768225256992,2.48577144,3116.0,3115.1,1.617]
[1768225257383,2.48577144,3115.8,3115.1,1.617]
[1768225258795,2.48577144,3115.8,3114.6,0.16074]
[1768225258986,2.48577144,3115.8,3115.0,1.617]
[1768225262594,2.48577144,3115.8,3114.6,0.16074]
[1768225262595,2.48577144,3115.8,3114.5,0.00398201]
[1768225262796,2.48577144,3115.6,3114.6,1.617]
[1768225262993,3.40340074,3115.5,3114.6,1.617]
[1768225263192,2.48577144,3115.5,3114.6,1.617]
[1768225265799,2.48577144,3115.5,3114.5,0.00398201]
[1768225265995,2.48577144,3115.5,3114.6,1.617]
[1768225266202,2.44135292,3115.3,3114.6,1.617]
[1768225270911,0.91529791,3115.2,3113.5,3.213]
[1768225271213,2.44135292,3115.0,3113.6,1.621]
[1768225271912,2.44465578,3115.0,3113.6,1.62424616]
[1768225272111,2.44465578,3115.0,3113.6,5.2638775]
[1768225272914,2.44465578,3115.0,3113.7,0.16078]
[1768225286415,2.44465578,3115.0,3113.8,0.16078]
[1768225286815,2.44465578,3115.0,3113.9,0.16077]
[1768225295529,2.44465578,3115.0,3114.0,1.649]
[1768225298036,2.44465578,3115.0,3114.0,2.8882687]
[1768225300337,3.39665017,3114.9,3114.0,2.8882687]
[1768225300533,2.47905165,3114.9,3114.0,2.8882687]
[1768225301835,2.47905165,3114.9,3114.1,1.653]
[1768225307037,0.00330286,3115.0,3113.8,1.2392687]
[1768225307038,2.47905165,3114.7,3113.8,1.2392687]
[1768225307348,2.47905165,3114.7,3113.9,1.655]
[1768225312435,2.47905165,3114.7,3113.8,1.2392687]
[1768225317444,2.47905165,3114.7,3113.6,1.81803616]
[1768225317634,2.47905165,3114.7,3113.6,0.00324616]
[1768225317839,2.47905165,3114.4,3113.5,1.653]
[1768225318039,2.47905165,3114.2,3113.2,1.2392687]
[1768225318243,2.47905165,3114.2,3113.3,1.653]
[1768225318842,2.47905165,3114.2,3113.3,0.00401515]
[1768225319044,2.47905165,3114.2,3113.3,1.65701515]
[1768225324040,2.47905165,3114.2,3113.3,0.00401515]
[1768225325949,2.42536618,3114.6,3113.9,1.2392687]
[1768225326151,2.42866904,3115.0,3113.4,2.485908]
[1768225326450,0.91699856,3114.9,3114.1,1.2392687]
[1768225326643,0.91699856,3114.8,3114.1,1.2392687]
[1768225326954,2.42866904,3115.0,3114.1,1.2392687]
[1768225327143,0.91700072,3114.9,3114.1,1.2392687]
[1768225327343,2.42866904,3115.0,3113.4,2.646708]
[1768225327344,0.91700072,3114.8,3113.9,1.2392687]
[1768225327547,0.91700072,3114.7,3113.9,1.2392687]
[1768225327748,2.42866904,3115.0,3113.9,1.2392687]
[1768225327952,0.91706921,3114.9,3113.9,1.2392687]
[1768225328151,0.91706921,3114.8,3113.9,1.2392687]
[1768225328452,2.42866904,3115.0,3114.3,1.2392687]
[1768225328453,0.00330286,3115.0,3114.3,1.2392687]
[1768225328951,0.00330286,3115.0,3114.1,1.2392687]
[1768225332547,0.00330286,3115.0,3114.0,1.651]
[1768225332748,0.00330286,3115.0,3114.1,1.2392687]
[1768225338453,0.00330286,3115.0,3113.7,0.16078]
[1768225338660,0.00330286,3115.0,3113.8,2.8882687]
[1768225339061,1.24257156,3115.0,3113.8,2.8882687]
[1768225343666,0.00330286,3115.0,3113.8,2.8882687]
[1768225343965,0.00330286,3115.0,3114.0,1.2392687]
[1768225346063,0.00330286,3115.0,3113.8,2.8882687]
[1768225351667,0.00330286,3115.0,3113.8,5.37790691]
[1768225351976,0.00330286,3115.0,3113.9,2.32885821]
[1768225353171,0.00330286,3115.0,3114.0,1.2392687]
[1768225354265,0.00330286,3115.0,3114.0,3.52735262]
[1768225354577,0.00330286,3115.0,3114.1,2.28808392]
[1768225355868,2.2305856,3115.9,3114.4,2.28808392]
[1768225356070,0.91922825,3115.8,3114.4,2.44883392]
[1768225356273,0.91922825,3115.7,3114.4,2.44883392]
[1768225356577,0.91922825,3115.6,3114.4,2.44883392]
[1768225356777,0.91922825,3115.5,3114.4,2.44883392]
[1768225357773,2.2305856,3115.4,3113.9,0.16077]
[1768225357967,3.14981385,3115.3,3114.0,1.648]
[1768225358173,0.91922825,3115.2,3114.0,1.648]
[1768225358473,0.91922825,3115.2,3114.1,1.648]
[1768225359075,2.2305856,3114.8,3113.3,0.16481515]
[1768225359270,1.23897584,3114.5,3113.3,0.16481515]
[1768225359476,3.14981385,3114.4,3113.3,0.00401515]
[1768225359676,0.91922825,3114.3,3113.3,0.00401515]
[1768225359979,0.91922825,3114.2,3113.3,0.00401515]
[1768225360278,2.2305856,3114.4,3113.3,0.00401515]
[1768225360580,0.91846044,3114.3,3113.3,0.00401515]
[1768225360778,0.91846693,3114.2,3113.3,0.00401515]
[1768225361075,2.2305856,3114.0,3112.5,1.647]
[1768225361279,3.14901361,3113.9,3112.5,1.647]
[1768225361575,0.91842801,3113.8,3112.5,1.647]
[1768225361767,0.91842801,3113.7,3112.5,1.647]
[1768225361972,2.2305856,3113.9,3112.5,1.64977273]
[1768225362172,0.91723208,3113.8,3112.5,1.64977273]
[1768225362373,2.2305856,3113.9,3112.5,1.64977273]
[1768225362573,0.91640359,3113.8,3112.5,1.64977273]
[1768225362774,2.2305856,3113.9,3112.5,1.64977273]
[1768225362975,0.91640493,3113.8,3112.5,1.64977273]
[1768225363174,2.2305856,3113.9,3112.5,1.64977273]
[1768225363369,1.23897584,3114.1,3112.5,1.64977273]
[1768225363370,2.2305856,3113.7,3112.5,0.00277273]
[1768225363683,2.2305856,3113.6,3112.5,0.00277273]
[1768225369580,2.2305856,3113.3,3112.5,0.00277273]
[1768225369883,2.23436524,3113.3,3112.5,0.00277273]
[1768225370185,2.23436524,3113.3,3111.9,3.215]
[1768225370186,2.2305856,3112.9,3111.9,3.215]
[1768225370374,2.2305856,3112.9,3111.1,2.28808392]
[1768225370576,2.2305856,3112.9,3111.2,1.646]
[1768225370973,2.2305856,3112.9,3111.2,1.65003807]
[1768225371485,2.2305856,3112.9,3111.3,2.28808392]
[1768225371688,2.2305856,3112.9,3111.4,2.28808392]
[1768225382093,2.2305856,3112.9,3111.2,1.65003807]
[1768225382287,1.23897584,3112.3,3111.2,0.00403807]
[1768225382485,3.46956144,3112.3,3111.2,1.65203807]
[1768225383491,2.2305856,3112.2,3111.2,1.65203807]
[1768225384286,2.2305856,3112.2,3111.2,0.00403807]
[1768225384483,2.28666911,3111.8,3110.2,2.31949958]
[1768225384687,2.28666911,3111.8,3110.4,1.648]
[1768225385490,2.28666911,3111.8,3110.4,1.65100333]
[1768225385992,2.28666911,3111.8,3109.5,2.08089294]
[1768225385993,1.23897584,3111.1,3109.3,2.48050958]
[1768225386297,1.23897584,3111.3,3109.4,1.648]
[1768225386298,2.28666911,3110.8,3109.4,1.648]
[1768225386595,2.28666911,3110.8,3109.5,1.648]
[1768225387000,2.28916099,3110.8,3109.5,1.65123217]
[1768225392507,0.00249188,3110.8,3109.7,2.43219188]
[1768225393304,0.00249188,3110.8,3109.7,2.27120188]
[1768225400113,0.00249188,3110.8,3109.7,2.43219188]
[1768225402119,0.00249188,3110.8,3110.0,3.67114772]
[1768225402416,2.20233956,3111.6,3110.0,2.43217188]
[1768225402718,3.11192293,3111.5,3110.0,2.43217188]
[1768225402910,3.11192293,3111.4,3110.0,2.43217188]
[1768225403109,0.90958337,3111.3,3110.0,2.43217188]
[1768225403307,0.00321171,3111.3,3110.0,2.43217188]
[1768225403814,0.00321171,3111.3,3109.5,1.24220801]
[1768225404020,0.90975329,3111.2,3109.6,7.13520188]
[1768225404318,2.20555127,3111.3,3109.7,1.646]
[1768225404618,3.11230004,3111.2,3109.7,1.646]
[1768225404811,2.20233956,3111.2,3109.7,1.646]
[1768225406113,0.91049829,3111.1,3109.7,1.646]
[1768225406415,2.20233956,3111.2,3109.6,2.43219188]
[1768225406607,0.91049732,3111.1,3109.7,1.645]
[1768225406806,2.20233956,3111.2,3109.7,1.645]
[1768225407016,0.9104956,3111.1,3109.7,1.645]
[1768225407213,2.20233956,3111.2,3109.7,1.645]
[1768225407512,0.91082914,3111.1,3109.7,1.645]
[1768225407710,2.20233956,3111.2,3109.7,1.645]
[1768225407904,0.91082833,3111.1,3109.7,1.645]
[1768225408107,2.20233956,3111.2,3109.7,1.645]
[1768225408308,0.91121712,3111.1,3109.7,1.645]
[1768225408618,2.20233956,3111.2,3109.7,1.645]
[1768225408918,2.20233956,3111.2,3109.7,1.80599]
[1768225408919,0.91121892,3111.1,3109.7,1.80599]
[1768225409103,2.20233956,3111.2,3109.7,1.80599]
[1768225409104,0.91168431,3111.0,3109.7,1.80599]
[1768225409305,2.20233956,3111.2,3109.7,1.80599]
[1768225409512,0.91168434,3111.1,3109.7,1.80599]
[1768225409711,0.91168434,3111.0,3109.7,1.80599]
[1768225410023,2.20233956,3111.2,3109.8,2.27120188]
[1768225410319,0.91177269,3111.1,3109.8,2.43218188]
[1768225410523,0.91177269,3111.0,3109.8,2.43218188]
[1768225410714,2.20233956,3111.2,3109.8,2.43218188]
[1768225410915,0.91226968,3111.1,3109.8,2.43218188]
[1768225411221,0.91226968,3111.0,3109.8,2.43218188]
[1768225411523,2.20233956,3111.2,3109.8,2.43218188]
[1768225411722,0.91297051,3111.1,3109.8,2.43218188]
[1768225411925,0.91297051,3111.0,3109.8,2.43218188]
[1768225412221,0.91386963,3110.9,3109.8,2.43218188]
[1768225412414,0.00321171,3111.3,3109.8,2.43218188]
[1768225412615,0.91386889,3111.2,3109.8,2.43218188]
[1768225412918,0.91386889,3111.1,3109.8,2.43218188]
[1768225413120,0.91386889,3111.0,3109.8,2.43218188]
[1768225413320,0.91386889,3110.9,3109.8,2.43218188]
[1768225413519,0.91386889,3110.8,3109.8,2.43218188]
[1768225413720,0.00321171,3111.3,3109.8,2.43218188]
[1768225413912,0.91455234,3111.2,3109.8,2.43218188]
[1768225414112,0.91455234,3111.1,3109.8,2.43218188]
[1768225414423,0.00321171,3111.3,3109.8,2.43218188]
[1768225414424,0.91455234,3111.0,3109.8,2.43218188]
[1768225414624,0.91455234,3110.9,3109.8,2.43218188]
[1768225414824,0.91455234,3110.8,3109.8,2.43218188]
[1768225415027,0.00321171,3111.3,3109.8,2.43218188]
[1768225415214,0.91575615,3111.2,3109.8,2.43218188]
[1768225415415,0.91575615,3111.1,3109.8,3.67457763]
[1768225415616,0.91575615,3111.1,3109.9,2.33383663]
[1768225416217,0.91575615,3111.0,3109.9,2.33383663]
[1768225416514,0.91575615,3110.9,3109.9,2.33383663]
[1768225416821,0.91575615,3110.8,3110.0,3.57623238]
[1768225417122,0.00321171,3111.3,3110.0,3.57623238]
[1768225417316,0.9158133,3111.2,3110.0,3.57623238]
[1768225417517,0.9158133,3111.1,3110.0,3.57623238]
[1768225417716,0.9158133,3111.0,3110.0,3.57623238]
[1768225417917,0.9158133,3110.9,3110.0,3.57623238]
[1768225418122,0.9158133,3110.8,3110.0,3.57623238]
[1768225418417,0.00321171,3111.3,3110.0,3.57623238]
[1768225418620,0.91589383,3111.2,3110.0,3.57623238]
[1768225418822,0.91589383,3111.1,3110.0,3.57623238]
[1768225419022,0.91589383,3111.0,3110.0,3.57623238]
[1768225419216,0.91589383,3110.9,3110.0,3.57623238]
[1768225419411,0.91589383,3110.8,3110.0,3.57623238]
[1768225419616,0.00321171,3111.3,3110.0,3.57623238]
[1768225419823,0.91600483,3111.2,3110.0,3.57623238]
[1768225420024,0.91600483,3111.1,3110.0,3.57623238]
[1768225420223,0.91600483,3111.0,3110.0,3.57623238]
[1768225420524,0.91600483,3110.9,3110.0,3.57623238]
[1768225420822,0.91600483,3110.8,3110.0,3.57623238]
[1768225421025,1.24239575,3111.2,3110.0,3.57623238]
[1768225421225,0.91640883,3111.1,3110.0,3.57623238]
[1768225421428,0.91640883,3111.0,3110.0,3.57623238]
[1768225421623,0.91640883,3110.9,3110.0,3.57623238]
[1768225421827,0.91640883,3110.8,3110.0,3.57623238]
[1768225422031,1.24239575,3111.2,3110.0,3.57623238]
[1768225422223,0.91672037,3111.1,3110.0,3.57623238]
[1768225422422,0.91672037,3111.0,3110.0,3.57623238]
[1768225422729,0.91672037,3110.9,3110.0,3.57623238]
[1768225423022,0.91672037,3110.8,3110.0,2.33383663]
[1768225423223,0.00321171,3111.3,3109.8,1.40337575]
[1768225423224,0.91672037,3110.7,3109.8,1.40337575]
[1768225423428,1.24239575,3111.0,3109.8,0.16098]
[1768225423633,0.91673014,3110.9,3109.8,0.16098]
[1768225423821,0.91673014,3110.8,3109.8,0.16098]
[1768225424126,1.24239575,3111.0,3109.8,3.73721238]
[1768225424328,0.91675107,3110.9,3109.8,3.73721238]
[1768225424526,0.91675107,3110.8,3109.8,3.73721238]
[1768225424726,1.24239575,3111.0,3109.8,3.73721238]
[1768225424921,0.9167511,3110.9,3109.8,3.73721238]
[1768225425122,0.9167511,3110.8,3109.8,3.73721238]
[1768225425321,1.24239575,3111.0,3109.8,2.49481663]
[1768225425523,0.91676191,3110.9,3109.8,3.73721238]
[1768225425723,0.91676191,3110.8,3109.8,3.73721238]
[1768225425931,1.24239575,3111.0,3109.8,3.73721238]
[1768225426132,0.91676191,3110.9,3109.8,3.73721238]
[1768225426431,2.15915766,3110.8,3109.9,1.643]
[1768225426640,1.24560746,3111.3,3110.1,2.33383663]
[1768225426832,1.24239575,3111.1,3110.1,2.33383663]
[1768225427035,0.91675683,3111.0,3110.1,2.33383663]
[1768225427528,0.91675683,3110.9,3110.1,2.33383663]
[1768225427833,0.91675683,3110.9,3109.9,1.643]
[1768225427834,0.00321171,3111.3,3110.6,1.24239575]
[1768225428028,0.00321171,3111.3,3110.6,3.57623238]
[1768225430028,1.24239575,3111.6,3110.4,2.49478663]
[1768225430333,1.24239575,3111.6,3110.5,1.642]
[1768225430933,1.24239575,3111.4,3110.5,1.642]
[1768225432634,1.24597377,3111.6,3110.5,1.642]
[1768225439440,0.00357802,3111.6,3110.5,1.642]
[1768225445250,1.24597377,3111.6,3110.5,1.642]
[1768225448650,1.24597377,3111.6,3110.5,3.78724567]
[1768225449043,0.00357802,3111.6,3110.5,3.78724567]
[1768225454356,0.91431635,3111.5,3110.5,3.78724567]
[1768225454558,0.00357802,3111.6,3110.5,3.78724567]
[1768225454759,0.91434356,3111.5,3110.5,3.78724567]
[1768225455054,0.00357802,3111.6,3110.5,3.78724567]
[1768225455255,0.91457859,3111.5,3110.5,3.78724567]
[1768225455456,0.00357802,3111.6,3110.5,3.78724567]
[1768225455659,0.91460256,3111.5,3110.5,3.78724567]
[1768225455858,0.00357802,3111.6,3110.5,3.78724567]
[1768225456058,0.91460353,3111.5,3110.5,3.78724567]
[1768225456359,0.00357802,3111.6,3110.5,3.78724567]
[1768225456550,0.91495097,3111.5,3110.5,3.78724567]
[1768225456750,0.00357802,3111.6,3110.5,3.78724567]
[1768225457050,0.91495232,3111.5,3110.5,3.78724567]
[1768225457255,0.91495232,3111.4,3110.5,3.78724567]
[1768225457450,0.00357802,3111.6,3110.5,3.78724567]
[1768225457656,0.91564375,3111.5,3110.5,3.78724567]
[1768225457862,0.91564375,3111.4,3110.5,3.78724567]
[1768225458053,0.00357802,3111.6,3110.5,3.78724567]
[1768225458252,0.91564124,3111.5,3110.5,3.78724567]
[1768225458560,0.91564124,3111.4,3110.5,3.78724567]
[1768225458758,0.00357802,3111.6,3110.5,3.78724567]
[1768225458956,0.91564251,3111.5,3110.5,3.78724567]
[1768225459163,0.91564251,3111.4,3110.5,3.78724567]
[1768225459461,0.00357802,3111.6,3110.5,3.78724567]
[1768225459662,0.91563979,3111.5,3110.5,3.78724567]
[1768225459852,0.91563979,3111.4,3110.5,3.78724567]
[1768225460056,0.00357802,3111.6,3110.5,3.78724567]
[1768225460353,0.91567155,3111.5,3110.5,3.78724567]
[1768225460552,0.91567155,3111.4,3110.5,3.78724567]
[1768225460753,0.00357802,3111.6,3110.5,3.78724567]
[1768225460948,0.91567561,3111.5,3110.5,3.78724567]
[1768225461170,0.91567561,3111.4,3110.5,3.78724567]
[1768225461363,0.00357802,3111.6,3110.5,3.78724567]
[1768225461662,0.91567934,3111.5,3110.5,3.78724567]
[1768225461865,0.91567934,3111.4,3110.5,3.78724567]
[1768225462066,0.00357802,3111.6,3110.5,3.78724567]
[1768225462261,0.91568612,3111.5,3110.5,3.78724567]
[1768225462454,0.91568612,3111.4,3110.5,3.78724567]
[1768225462656,0.00357802,3111.6,3110.5,3.78724567]
[1768225462856,0.91590675,3111.5,3110.5,3.78724567]
[1768225463052,0.91590675,3111.4,3110.5,3.78724567]
[1768225463259,0.00357802,3111.6,3110.5,3.78724567]
[1768225463458,0.91591717,3111.5,3110.5,3.78724567]
[1768225463659,0.91591717,3111.4,3110.5,3.78724567]
[1768225463858,0.00357802,3111.6,3110.5,3.78724567]
[1768225464069,0.91591776,3111.5,3110.5,3.78724567]
[1768225464264,0.91591776,3111.4,3110.8,1.24239575]
[1768225464465,0.00357802,3111.6,3110.7,2.33702952]
[1768225464659,0.9159443,3111.5,3110.8,1.24239575]
[1768225464863,0.00357802,3111.6,3110.8,1.24239575]
[1768225465165,0.9159424,3111.5,3111.0,1.24239575]
[1768225465467,0.00357802,3111.6,3110.8,3.57942527]
[1768225466363,0.00357802,3111.6,3110.8,2.33702952]
[1768225467568,0.00357802,3111.6,3110.8,3.57942527]
[1768225471880,0.00357802,3111.6,3111.0,1.24239575]
[1768225472075,0.00357802,3111.6,3111.1,1.649]
[1768225476690,0.00357802,3111.6,3110.6,0.16094]
[1768225476894,0.00357802,3111.6,3110.7,1.656]
[1768225477692,0.00357802,3111.6,3110.7,3.84257791]
[1768225478292,0.00357802,3111.6,3110.8,2.18657791]
[1768225496100,2.87521937,3112.8,3110.7,1.656]
[1768225496101,2.30144099,3112.8,3111.2,2.18657791]
[1768225496300,1.22382216,3112.7,3111.2,2.18657791]
[1768225496495,0.91557659,3112.6,3111.2,2.18657791]
[1768225496696,0.91557659,3112.5,3111.2,2.18657791]
[1768225496896,0.91557659,3112.4,3111.2,2.18657791]
[1768225497101,0.91557659,3112.3,3111.2,2.18657791]
[1768225497404,0.91557659,3112.2,3111.2,2.18657791]
[1768225497597,0.00327425,3112.4,3111.2,2.18657791]
[1768225497790,2.15656818,3112.3,3111.3,1.655]
[1768225497994,0.91483203,3112.2,3110.8,2.18657791]
[1768225498203,0.91483203,3112.1,3110.8,2.18657791]
[1768225498397,0.91483203,3112.0,3110.7,0.16094]
[1768225498703,0.91483203,3111.9,3110.8,1.656]
[1768225498902,0.91483203,3111.8,3110.8,1.656]
[1768225499205,2.20749953,3112.1,3110.8,1.656]
[1768225499399,0.91462898,3112.0,3110.8,1.656]
[1768225499596,0.91462898,3111.9,3110.9,1.655]
[1768225499797,0.91462898,3111.8,3110.8,1.655]
[1768225500004,2.20749953,3112.1,3110.8,1.655]
[1768225500202,0.91463082,3112.0,3110.8,1.655]
[1768225500402,0.91463082,3111.9,3110.8,1.655]
[1768225501001,0.91463082,3111.9,3110.4,2.18657791]
[1768225501304,0.91463082,3111.8,3110.5,1.655]
[1768225501499,0.91463082,3111.7,3110.5,1.655]
[1768225501706,0.91463082,3111.6,3110.5,1.655]
[1768225501905,2.20749953,3111.8,3110.5,1.655]
[1768225502108,0.91443195,3111.7,3110.5,1.655]
[1768225502308,0.91443195,3111.6,3110.1,0.16097]
[1768225502507,0.91443195,3111.5,3110.2,1.655]
[1768225502808,2.20749953,3111.8,3110.2,1.655]
[1768225503005,0.91436216,3111.7,3110.3,2.18657791]
[1768225503205,0.91436216,3111.6,3110.3,2.18657791]
[1768225503408,0.91436216,3111.5,3110.3,2.18657791]
[1768225503605,2.20749953,3111.8,3110.3,2.18657791]
[1768225503807,0.91426844,3111.7,3110.3,2.18657791]
[1768225504009,0.91426844,3111.6,3110.3,2.18657791]
[1768225504212,0.91426844,3111.5,3110.3,2.18657791]
[1768225504401,2.20749953,3111.8,3110.3,2.18657791]
[1768225504602,0.9142144,3111.7,3110.3,2.18657791]
[1768225504803,0.9142144,3111.6,3110.3,2.18657791]
[1768225505006,0.9142144,3111.5,3110.3,2.18657791]
[1768225505207,2.20749953,3111.8,3110.3,2.18657791]
[1768225505407,0.91419199,3111.7,3110.3,2.18657791]
[1768225505603,0.91419199,3111.6,3110.3,2.18657791]
[1768225505908,0.91419199,3111.5,3110.3,2.18657791]
[1768225506107,2.20749953,3111.8,3110.3,2.18657791]
[1768225506307,0.91416249,3111.7,3110.3,2.18657791]
[1768225506503,0.91416249,3111.6,3110.3,2.18657791]
[1768225506698,2.20749953,3111.8,3110.3,2.18657791]
[1768225506912,0.91411921,3111.7,3110.3,2.18657791]
[1768225507210,0.91411921,3111.6,3110.3,2.34753791]
[1768225507412,2.20749953,3111.8,3110.3,2.34753791]
[1768225507598,0.91408987,3111.7,3110.3,2.34753791]
[1768225507802,0.91408987,3111.6,3110.3,2.34753791]
[1768225508003,2.20749953,3111.8,3110.3,2.34753791]
[1768225508211,0.91408642,3111.7,3110.3,2.34753791]
[1768225508403,0.91408642,3111.6,3110.3,2.34753791]
[1768225508603,2.20749953,3111.8,3110.3,2.34753791]
[1768225508806,0.91406376,3111.7,3110.3,2.34753791]
[1768225509012,0.91406376,3111.6,3110.3,2.34753791]
[1768225509219,2.20749953,3111.8,3110.3,2.34753791]
[1768225509510,0.91405875,3111.7,3110.3,2.34753791]
[1768225509710,0.91405875,3111.6,3110.3,2.34753791]
[1768225510012,2.20749953,3111.8,3110.3,2.34753791]
[1768225510200,0.91403311,3111.7,3110.3,2.34753791]
[1768225510404,0.91403311,3111.6,3110.3,2.34753791]
[1768225510605,2.20749953,3111.8,3110.3,2.34753791]
[1768225510812,0.91399858,3111.7,3110.3,2.34753791]
[1768225511014,0.91399858,3111.6,3110.3,2.34753791]
[1768225511311,2.20749953,3111.8,3110.3,2.34753791]
[1768225511512,0.91397226,3111.7,3110.3,2.34753791]
[1768225511709,0.91397226,3111.6,3110.3,2.34753791]
[1768225511915,2.20749953,3111.8,3110.3,2.34753791]
[1768225512211,0.91397225,3111.7,3110.3,2.34753791]
[1768225512410,0.91397225,3111.6,3110.3,2.34753791]
[1768225512607,3.51801278,3112.2,3110.5,2.17697686]
[1768225512812,0.91394702,3112.1,3110.5,2.17697686]
[1768225513111,0.91394702,3112.0,3110.5,2.17697686]
[1768225513312,0.91394702,3111.9,3110.5,2.17697686]
[1768225513507,0.91394702,3111.8,3110.5,2.33792686]
[1768225513713,0.91394702,3111.7,3110.5,2.33792686]